fUST/lending_fUST_20240919
["ID","MTS","AMOUNT","RATE_DAILY","PERIOD"]
[338588386,1726751449169,-281.047852,0.00016712,2]
[338588387,1726751449180,-506.42098458,0.00016712,2]
[338588388,1726751449190,-500.0,0.00016712,2]
[338588389,1726751449202,-500.0,0.00016712,2]
[338588390,1726751449212,-500.0,0.00016712,2]
[338588391,1726751449222,-151.0,0.00016712,2]
[338588392,1726751449232,-151.0,0.00016712,2]
[338588393,1726751449242,-399.15375636,0.00016712,2]
[338588394,1726751449251,-500.0,0.00016712,2]
[338588395,1726751449261,-500.0,0.00016712,2]
[338588396,1726751449271,-564.40204833,0.00016712,2]
[338588397,1726751449281,-500.0,0.00016712,2]
[338588398,1726751449291,-500.0,0.00016712,2]
[338588399,1726751449301,-500.0,0.00016712,2]
[338588400,1726751449310,-500.0,0.00016712,2]
[338588401,1726751449322,-151.0,0.00016712,2]
[338588402,1726751449333,-500.0,0.00016712,2]
[338588403,1726751449343,-551.57056552,0.00016712,2]
[338588404,1726751449354,-979.54,0.00016712,2]
[338588405,1726751449363,-500.0,0.00016712,2]
[338588406,1726751449373,-500.0,0.00016712,2]
[338588407,1726751449383,-500.0,0.00016712,2]
[338588408,1726751449392,-500.0,0.00016712,2]
[338588409,1726751449402,-500.0,0.00016712,2]
[338588410,1726751449412,-675.99,0.00016712,2]
[338588411,1726751449421,-151.0,0.00016712,2]
[338588412,1726751449431,-151.0,0.00016712,2]
[338588413,1726751449441,-151.0,0.00016712,2]
[338588414,1726751449451,-161.260964,0.00016712,2]
[338588415,1726751449460,-500.0,0.00016712,2]
[338588416,1726751449470,-500.0,0.00016712,2]
[338588417,1726751449480,-500.0,0.00016712,2]
[338588418,1726751449490,-948.58,0.00016712,2]
[338588419,1726751449501,-500.0,0.00016712,2]
[338588420,1726751449512,-500.0,0.00016712,2]
[338588421,1726751449522,-1416.16,0.00016712,2]
[338588422,1726751449532,-500.0,0.00016712,2]
[338588423,1726751449541,-500.0,0.00016712,2]
[338588424,1726751449551,-500.0,0.00016712,2]
[338588425,1726751449561,-500.0,0.00016712,2]
[338588426,1726751449571,-580.39,0.00016712,2]
[338588427,1726751449581,-500.0,0.00016712,2]
[338588428,1726751449590,-500.0,0.00016712,2]
[338588429,1726751449601,-500.0,0.00016712,2]
[338588430,1726751449611,-500.0,0.00016712,2]
[338588431,1726751449620,-824.76,0.00016712,2]
[338588432,1726751449630,-500.0,0.00016712,2]
[338588433,1726751449641,-500.0,0.00016712,2]
[338588434,1726751449651,-500.0,0.00016712,2]
[338588435,1726751449660,-500.0,0.00016712,2]
[338588436,1726751449670,-500.0,0.00016712,2]
[338588437,1726751449679,-500.0,0.00016712,2]
[338588438,1726751449689,-500.0,0.00016712,2]
[338588439,1726751449699,-500.0,0.00016712,2]
[338588440,1726751449708,-500.0,0.00016712,2]
[338588441,1726751449718,-500.0,0.00016712,2]
[338588442,1726751449729,-500.0,0.00016712,2]
[338588443,1726751449740,-532.93,0.00016712,2]
[338588444,1726751449751,-500.0,0.00016712,2]
[338588445,1726751449761,-500.0,0.00016712,2]
[338588446,1726751449771,-1650.02,0.00016712,2]
[338588447,1726751449780,-151.0,0.00016712,2]
[338588448,1726751449790,-151.0,0.00016712,2]
[338588449,1726751449800,-151.0,0.00016712,2]
[338588450,1726751449810,-500.0,0.00016712,2]
[338588451,1726751449820,-151.0,0.00016712,2]
[338588452,1726751449830,-151.0,0.00016712,2]
[338588453,1726751449840,-151.0,0.00016712,2]
[338588454,1726751449850,-500.0,0.00016712,2]
[338588455,1726751449860,-500.0,0.00016712,2]
[338588456,1726751449869,-664.78,0.00016712,2]
[338588457,1726751449879,-894.13,0.00016712,2]
[338588458,1726751449889,-500.0,0.00016712,2]
[338588459,1726751449898,-531.2,0.00016712,2]
[338588460,1726751449908,-584.79049274,0.00016712,2]
[338588461,1726751449917,-500.0,0.00016712,2]
[338588462,1726751449927,-151.0,0.00016712,2]
[338588463,1726751449937,-500.0,0.00016712,2]
[338588464,1726751449947,-500.0,0.00016712,2]
[338588465,1726751449957,-151.0,0.00016712,2]
[338588466,1726751449967,-151.0,0.00016712,2]
[338588467,1726751449976,-500.0,0.00016712,2]
[338588468,1726751449986,-151.0,0.00016712,2]
[338588469,1726751449995,-151.0,0.00016712,2]
[338588470,1726751450005,-151.0,0.00016712,2]
[338588471,1726751450015,-151.0,0.00016712,2]
[338588472,1726751450024,-500.0,0.00016712,2]
[338588473,1726751450034,-1097.909072,0.00016712,2]
[338588474,1726751450044,-500.0,0.00016712,2]
[338588475,1726751450053,-1097.909072,0.00016712,2]
[338588476,1726751450063,-1097.909072,0.00016712,2]
[338588477,1726751450072,-887.44,0.00016712,2]
[338588478,1726751450082,-1097.909072,0.00016712,2]
[338588479,1726751450092,-1097.909072,0.00016712,2]
[338588480,1726751450101,-1097.909072,0.00016712,2]
[338588481,1726751450110,-3076.43,0.00016712,2]
[338588482,1726751450120,-826.55,0.00016712,2]
[338588483,1726751450131,-500.0,0.00016712,2]
[338588484,1726751450140,-500.0,0.00016712,2]
[338588485,1726751450150,-500.0,0.00016712,2]
[338588486,1726751450160,-1023.22,0.00016712,2]
[338588487,1726751450169,-151.0,0.00016712,2]
[338588488,1726751450179,-500.0,0.00016712,2]
[338588489,1726751450189,-500.0,0.00016712,2]
[338588490,1726751450198,-500.0,0.00016712,2]
[338588491,1726751450208,-781.29,0.00016712,2]
[338588492,1726751450217,-500.0,0.00016712,2]
[338588493,1726751450227,-513.78535567,0.00016712,2]
[338588494,1726751450237,-1446.39,0.00016712,2]
[338588495,1726751450246,-151.0,0.00016712,2]
[338588496,1726751450255,-500.0,0.00016712,2]
[338588497,1726751450265,-629.77,0.00016712,2]
[338588498,1726751450275,-500.0,0.00016712,2]
[338588499,1726751450284,-500.0,0.00016712,2]
[338588500,1726751450294,-500.0,0.00016712,2]
[338588501,1726751450303,-500.0,0.00016712,2]
[338588502,1726751450313,-835.6,0.00016712,2]
[338588503,1726751450324,-2413.04,0.00016712,2]
[338588504,1726751450335,-500.0,0.00016712,2]
[338588505,1726751450345,-500.0,0.00016712,2]
[338588506,1726751450357,-500.0,0.00016712,2]
[338588507,1726751450367,-500.0,0.00016712,2]
[338588508,1726751450376,-500.0,0.00016712,2]
[338588509,1726751450387,-500.0,0.00016712,2]
[338588510,1726751450397,-151.0,0.00016712,2]
[338588511,1726751450407,-151.0,0.00016712,2]
[338588512,1726751450418,-500.0,0.00016712,2]
[338588513,1726751450428,-500.0,0.00016712,2]
[338588514,1726751450438,-500.0,0.00016712,2]
[338588515,1726751450447,-1188.01,0.00016712,2]
[338588516,1726751450457,-1016.93,0.00016712,2]
[338588517,1726751450467,-151.0,0.00016712,2]
[338588518,1726751450477,-151.0,0.00016712,2]
[338588519,1726751450487,-500.0,0.00016712,2]
[338588520,1726751450497,-500.0,0.00016712,2]
[338588521,1726751450507,-151.0,0.00016712,2]
[338588522,1726751450516,-151.0,0.00016712,2]
[338588523,1726751450813,-948.34,0.00016712,2]
[338588524,1726751450824,-500.0,0.00016712,2]
[338588525,1726751450834,-1121.77,0.00016712,2]
[338588526,1726751450844,-1136.32,0.00016712,2]
[338588527,1726751450855,-500.0,0.00016712,2]
[338588528,1726751450865,-500.0,0.00016712,2]
[338588529,1726751450875,-560.48,0.00016712,2]
[338588530,1726751450885,-500.0,0.00016712,2]
[338588531,1726751450894,-151.0,0.00016712,2]
[338588532,1726751450904,-151.0,0.00016712,2]
[338588533,1726751450914,-500.0,0.00016712,2]
[338588534,1726751450923,-752.46,0.00016712,2]
[338588535,1726751450933,-582.72700366,0.00016712,2]
[338588536,1726751450942,-527.21,0.00016712,2]
[338588537,1726751450951,-937.41,0.00016712,2]
[338588538,1726751450961,-500.0,0.00016712,2]
[338588539,1726751450971,-1248.77,0.00016712,2]
[338588540,1726751450981,-500.0,0.00016712,2]
[338588541,1726751450991,-744.52,0.00016712,2]
[338588542,1726751451001,-640.9,0.00016712,2]
[338588543,1726751451011,-500.0,0.00016712,2]
[338588544,1726751451021,-500.0,0.00016712,2]
[338588545,1726751451031,-531.89,0.00016712,2]
[338588546,1726751451042,-793.15,0.00016712,2]
[338588547,1726751451051,-588.03,0.00016712,2]
[338588548,1726751451061,-500.0,0.00016712,2]
[338588549,1726751451071,-500.0,0.00016712,2]
[338588550,1726751451081,-885.05,0.00016712,2]
[338588551,1726751451090,-500.0,0.00016712,2]
[338588552,1726751451100,-500.0,0.00016712,2]
[338588553,1726751451109,-500.0,0.00016712,2]
[338588554,1726751451119,-500.0,0.00016712,2]
[338588555,1726751451129,-862.39,0.00016712,2]
[338588556,1726751451138,-941.56,0.00016712,2]
[338588557,1726751451148,-1306.84,0.00016712,2]
[338588558,1726751451158,-500.0,0.00016712,2]
[338588559,1726751451167,-500.0,0.00016712,2]
[338588560,1726751451177,-753.97,0.00016712,2]
[338588561,1726751451186,-1255.77,0.00016712,2]
[338588562,1726751451196,-225.188261,0.00016712,2]
[338588563,1726751451205,-500.0,0.00016712,2]
[338588564,1726751451215,-225.188261,0.00016712,2]
[338588565,1726751451225,-194.74104936,0.00016712,2]
[338588566,1726751451235,-1752.99,0.00016712,2]
[338588567,1726751451245,-225.188261,0.00016712,2]
[338588568,1726751451255,-500.0,0.00016712,2]
[338588569,1726751451264,-225.188261,0.00016712,2]
[338588570,1726751451274,-1301.94,0.00016712,2]
[338588571,1726751451284,-500.0,0.00016712,2]
[338588572,1726751451293,-500.0,0.00016712,2]
[338588573,1726751451303,-1320.75,0.00016712,2]
[338588574,1726751451313,-684.19,0.00016712,2]
[338588575,1726751451323,-1384.93,0.00016712,2]
[338588576,1726751451333,-1450.8,0.00016712,2]
[338588577,1726751451343,-1264.34,0.00016712,2]
[338588578,1726751451353,-500.0,0.00016712,2]
[338588579,1726751451362,-217.46,0.00016712,2]
[338588580,1726751451372,-151.0,0.00016712,2]
[338588581,1726751451383,-175.09,0.00016712,2]
[338588582,1726751451402,-151.0,0.00016712,2]
[338588583,1726751451411,-766.81,0.00016712,2]
[338588584,1726751451421,-500.0,0.00016712,2]
[338588585,1726751451431,-780.73,0.00016712,2]
[338588586,1726751451440,-879.27,0.00016712,2]
[338588587,1726751451450,-500.0,0.00016712,2]
[338588588,1726751451459,-502.20690733,0.00016712,2]
[338588589,1726751451469,-500.0,0.00016712,2]
[338588590,1726751451478,-1361.670472,0.00016712,2]
[338588591,1726751451488,-537.65,0.00016712,2]
[338588592,1726751451498,-1361.670472,0.00016712,2]
[338588593,1726751451508,-500.0,0.00016712,2]
[338588594,1726751451517,-547.93,0.00016712,2]
[338588595,1726751451528,-1361.670472,0.00016712,2]
[338588596,1726751451537,-1361.670472,0.00016712,2]
[338588597,1726751451547,-500.0,0.00016712,2]
[338588598,1726751451557,-500.0,0.00016712,2]
[338588599,1726751451567,-500.0,0.00016712,2]
[338588600,1726751451576,-2035.61,0.00016712,2]
[338588601,1726751451586,-500.0,0.00016712,2]
[338588602,1726751451595,-698.3,0.00016712,2]
[338588603,1726751451605,-853.67,0.00016712,2]
[338588604,1726751451614,-500.0,0.00016712,2]
[338588605,1726751451624,-500.0,0.00016712,2]
[338588606,1726751451634,-889.97,0.00016712,2]
[338588607,1726751451643,-500.0,0.00016712,2]
[338588608,1726751451653,-500.0,0.00016712,2]
[338588609,1726751451663,-888.76,0.00016712,2]
[338588610,1726751451673,-1170.05,0.00016712,2]
[338588611,1726751451683,-500.0,0.00016712,2]
[338588612,1726751451692,-629.52095067,0.00016712,2]
[338588613,1726751451702,-151.0,0.00016712,2]
[338588614,1726751451712,-151.0,0.00016712,2]
[338588615,1726751451721,-500.0,0.00016712,2]
[338588616,1726751451731,-500.0,0.00016712,2]
[338588617,1726751451744,-800.16,0.00016712,2]
[338588618,1726751451753,-500.0,0.00016712,2]
[338588619,1726751451763,-875.59,0.00016712,2]
[338588620,1726751451772,-500.0,0.00016712,2]
[338588621,1726751451782,-500.0,0.00016712,2]
[338588622,1726751451792,-197.80756893,0.00016712,2]
[338588623,1726751451801,-500.0,0.00016712,2]
[338588624,1726751451811,-500.0,0.00016712,2]
[338588625,1726751451823,-2318.87,0.00016712,2]
[338588626,1726751451833,-500.0,0.00016712,2]
[338588627,1726751451842,-500.0,0.00016712,2]
[338588628,1726751451852,-500.0,0.00016712,2]
[338588629,1726751451862,-531.41,0.00016712,2]
[338588630,1726751451872,-500.0,0.00016712,2]
[338588631,1726751451886,-773.04,0.00016712,2]
[338588632,1726751451901,-1986.979024,0.00016712,2]
[338588633,1726751451910,-1986.979024,0.00016712,2]
[338588634,1726751451919,-803.36,0.00016712,2]
[338588635,1726751451929,-756.25,0.00016712,2]
[338588636,1726751451938,-1178.56,0.00016712,2]
[338588637,1726751451948,-668.42,0.00016712,2]
[338588638,1726751451958,-1986.979024,0.00016712,2]
[338588639,1726751451967,-1986.979024,0.00016712,2]
[338588640,1726751451977,-500.0,0.00016712,2]
[338588641,1726751451987,-500.0,0.00016712,2]
[338588642,1726751451996,-500.0,0.00016712,2]
[338588643,1726751452005,-500.0,0.00016712,2]
[338588644,1726751452015,-594.79,0.00016712,2]
[338588645,1726751452025,-500.0,0.00016712,2]
[338588646,1726751452035,-1046.08,0.00016712,2]
[338588647,1726751452045,-500.0,0.00016712,2]
[338588648,1726751452055,-253.30135215,0.00016712,2]
[338588649,1726751452065,-151.0,0.00016712,2]
[338588650,1726751452075,-151.0,0.00016712,2]
[338588651,1726751452084,-500.0,0.00016712,2]
[338588652,1726751452094,-500.0,0.00016712,2]
[338588653,1726751452104,-892.81,0.00016712,2]
[338588654,1726751452114,-500.0,0.00016712,2]
[338588655,1726751452123,-2275.67,0.00016712,2]
[338588656,1726751452136,-500.0,0.00016712,2]
[338588657,1726751452146,-500.0,0.00016712,2]
[338588658,1726751452156,-773.83,0.00016712,2]
[338588659,1726751452166,-1029.3,0.00016712,2]
[338588660,1726751452175,-500.0,0.00016712,2]
[338588661,1726751452186,-500.0,0.00016712,2]
[338588662,1726751452195,-500.0,0.00016712,2]
[338588663,1726751452205,-500.0,0.00016712,2]
[338588664,1726751452216,-500.0,0.00016712,2]
[338588665,1726751452225,-500.0,0.00016712,2]
[338588666,1726751452235,-500.0,0.00016712,2]
[338588667,1726751452245,-151.0,0.00016712,2]
[338588668,1726751452255,-151.0,0.00016712,2]
[338588669,1726751452264,-500.0,0.00016712,2]
[338588670,1726751452274,-757.78,0.00016712,2]
[338588671,1726751452283,-500.0,0.00016712,2]
[338588672,1726751452293,-500.0,0.00016712,2]
[338588673,1726751452302,-500.0,0.00016712,2]
[338588674,1726751452312,-703.38,0.00016712,2]
[338588675,1726751452321,-500.0,0.00016712,2]
[338588676,1726751452331,-500.0,0.00016712,2]
[338588677,1726751452341,-682.07,0.00016712,2]
[338588678,1726751452351,-1198.92,0.00016712,2]
[338588679,1726751452360,-500.0,0.00016712,2]
[338588680,1726751452370,-500.0,0.00016712,2]
[338588681,1726751452380,-1550.04,0.00016712,2]
[338588682,1726751452390,-500.0,0.00016712,2]
[338588683,1726751452399,-1069.52,0.00016712,2]
[338588684,1726751452409,-500.0,0.00016712,2]
[338588685,1726751452419,-551.23,0.00016712,2]
[338588686,1726751452429,-500.0,0.00016712,2]
[338588687,1726751452438,-500.0,0.00016712,2]
[338588688,1726751452448,-500.0,0.00016712,2]
[338588689,1726751452458,-500.0,0.00016712,2]
[338588690,1726751452467,-564.23070744,0.00016712,2]
[338588691,1726751452477,-599.66,0.00016712,2]
[338588692,1726751452487,-500.0,0.00016712,2]
[338588693,1726751452496,-570.78,0.00016712,2]
[338588694,1726751452506,-849.79,0.00016712,2]
[338588695,1726751452516,-500.0,0.00016712,2]
[338588696,1726751452525,-1801.81,0.00016712,2]
[338588697,1726751452535,-528.84,0.00016712,2]
[338588698,1726751452545,-500.0,0.00016712,2]
[338588699,1726751452555,-500.0,0.00016712,2]
[338588700,1726751452564,-415.07825703,0.00016712,2]
[338588701,1726751452574,-500.0,0.00016712,2]
[338588702,1726751452583,-500.0,0.00016712,2]
[338588703,1726751452593,-826.68,0.00016712,2]
[338588704,1726751452603,-2898.4,0.00016712,2]
[338588705,1726751452614,-500.0,0.00016712,2]
[338588706,1726751452624,-1722.19,0.00016712,2]
[338588707,1726751452636,-556.56,0.00016712,2]
[338588708,1726751452645,-500.0,0.00016712,2]
[338588709,1726751452654,-500.0,0.00016712,2]
[338588710,1726751452664,-500.0,0.00016712,2]
[338588711,1726751452674,-500.0,0.00016712,2]
[338588712,1726751452683,-500.0,0.00016712,2]
[338588713,1726751452692,-700.2,0.00016712,2]
[338588714,1726751452701,-500.0,0.00016712,2]
[338588715,1726751452711,-641.22,0.00016712,2]
[338588716,1726751452720,-500.0,0.00016712,2]
[338588717,1726751452730,-2311.065757,0.00016712,2]
[338588718,1726751452741,-2311.065757,0.00016712,2]
[338588719,1726751452751,-500.0,0.00016712,2]
[338588720,1726751452761,-326.424278,0.00016712,2]
[338588721,1726751452771,-326.424278,0.00016712,2]
[338588722,1726751452780,-500.0,0.00016712,2]
[338588723,1726751452790,-326.424278,0.00016712,2]
[338588724,1726751452799,-2311.065757,0.00016712,2]
[338588725,1726751452809,-500.0,0.00016712,2]
[338588726,1726751452821,-2311.065757,0.00016712,2]
[338588727,1726751452831,-500.0,0.00016712,2]
[338588728,1726751452840,-500.0,0.00016712,2]
[338588729,1726751452850,-326.424278,0.00016712,2]
[338588730,1726751452860,-500.0,0.00016712,2]
[338588731,1726751452869,-326.424278,0.00016712,2]
[338588732,1726751452880,-326.424278,0.00016712,2]
[338588733,1726751452890,-500.0,0.00016712,2]
[338588734,1726751452899,-500.0,0.00016712,2]
[338588735,1726751452908,-500.0,0.00016712,2]
[338588736,1726751452918,-500.0,0.00016712,2]
[338588737,1726751452927,-375.976776,0.00016712,2]
[338588738,1726751452937,-375.976776,0.00016712,2]
[338588739,1726751452947,-151.0,0.00016712,2]
[338588740,1726751452957,-375.976776,0.00016712,2]
[338588741,1726751452967,-151.0,0.00016712,2]
[338588742,1726751452977,-151.0,0.00016712,2]
[338588743,1726751452986,-375.976776,0.00016712,2]
[338588744,1726751452996,-500.0,0.00016712,2]
[338588745,1726751453006,-375.976776,0.00016712,2]
[338588746,1726751453015,-546.62,0.00016712,2]
[338588747,1726751453025,-375.976776,0.00016712,2]
[338588748,1726751453034,-500.0,0.00016712,2]
[338588749,1726751453043,-500.0,0.00016712,2]
[338588750,1726751453053,-500.0,0.00016712,2]
[338588751,1726751453063,-500.0,0.00016712,2]
[338588752,1726751453072,-500.0,0.00016712,2]
[338588753,1726751453082,-1824.84,0.00016712,2]
[338588754,1726751453092,-1717.1,0.00016712,2]
[338588755,1726751453101,-501.35330466,0.00016712,2]
[338588756,1726751453111,-500.0,0.00016712,2]
[338588757,1726751453122,-627.7,0.00016712,2]
[338588758,1726751453133,-500.0,0.00016712,2]
[338588759,1726751453143,-500.0,0.00016712,2]
[338588760,1726751453152,-500.0,0.00016712,2]
[338588761,1726751453161,-500.0,0.00016712,2]
[338588762,1726751453171,-500.0,0.00016712,2]
[338588763,1726751453180,-1406.63,0.00016712,2]
[338588764,1726751453246,-218.878831,0.00016712,2]
[338588765,1726751453255,-218.878831,0.00016712,2]
[338588766,1726751453265,-218.878831,0.00016712,2]
[338588767,1726751453274,-500.0,0.00016712,2]
[338588768,1726751453283,-500.0,0.00016712,2]
[338588769,1726751453292,-218.878831,0.00016712,2]
[338588770,1726751453301,-218.878831,0.00016712,2]
[338588771,1726751453310,-500.0,0.00016712,2]
[338588772,1726751453320,-442.54357008,0.00016712,2]
[338588773,1726751453329,-500.0,0.00016712,2]
[338588774,1726751453338,-608.73,0.00016712,2]
[338588775,1726751453348,-218.878831,0.00016712,2]
[338588776,1726751453357,-500.0,0.00016712,2]
[338588777,1726751453367,-2382.96,0.00016712,2]
[338588778,1726751453376,-500.0,0.00016712,2]
[338588779,1726751453388,-895.1,0.00016712,2]
[338588780,1726751453397,-261.392512,0.00016712,2]
[338588781,1726751453407,-500.0,0.00016712,2]
[338588782,1726751453416,-261.392512,0.00016712,2]
[338588783,1726751453425,-261.392512,0.00016712,2]
[338588784,1726751453435,-1031.01,0.00016712,2]
[338588785,1726751453443,-689.06,0.00016712,2]
[338588786,1726751453454,-261.392512,0.00016712,2]
[338588787,1726751453464,-261.392512,0.00016712,2]
[338588788,1726751453473,-261.392512,0.00016712,2]
[338588789,1726751453482,-151.0,0.00016712,2]
[338588790,1726751453491,-151.0,0.00016712,2]
[338588791,1726751453500,-1326.0,0.00016712,2]
[338588792,1726751453512,-500.0,0.00016712,2]
[338588793,1726751453522,-710.33,0.00016712,2]
[338588794,1726751453533,-1000.0,0.00016712,2]
[338588795,1726751453543,-1000.0,0.00016712,2]
[338588796,1726751453553,-1000.0,0.00016712,2]
[338588797,1726751453562,-500.0,0.00016712,2]
[338588798,1726751453572,-1000.0,0.00016712,2]
[338588799,1726751453582,-1452.33,0.00016712,2]
[338588800,1726751453591,-1000.0,0.00016712,2]
[338588801,1726751453601,-1000.0,0.00016712,2]
[338588802,1726751453610,-1000.0,0.00016712,2]
[338588803,1726751453620,-1000.0,0.00016712,2]
[338588804,1726751453630,-1000.0,0.00016712,2]
[338588805,1726751453639,-724.95,0.00016712,2]
[338588806,1726751453648,-1000.0,0.00016712,2]
[338588807,1726751453657,-1000.0,0.00016712,2]
[338588808,1726751453667,-1000.0,0.00016712,2]
[338588809,1726751453676,-1000.0,0.00016712,2]
[338588810,1726751453685,-1000.0,0.00016712,2]
[338588811,1726751453694,-1000.0,0.00016712,2]
[338588812,1726751453704,-785.44,0.00016712,2]
[338588813,1726751453714,-500.0,0.00016712,2]
[338588814,1726751453723,-1000.0,0.00016712,2]
[338588815,1726751453733,-1000.0,0.00016712,2]
[338588816,1726751453746,-857.98,0.00016712,2]
[338588817,1726751453755,-1000.0,0.00016712,2]
[338588818,1726751453764,-1000.0,0.00016712,2]
[338588819,1726751453773,-1000.0,0.00016712,2]
[338588820,1726751453782,-1000.0,0.00016712,2]
[338588821,1726751453792,-1000.0,0.00016712,2]
[338588822,1726751453801,-1000.0,0.00016712,2]
[338588823,1726751453810,-610.34,0.00016712,2]
[338588824,1726751453822,-1000.0,0.00016712,2]
[338588825,1726751453832,-1000.0,0.00016712,2]
[338588826,1726751453841,-151.0,0.00016712,2]
[338588827,1726751453850,-1000.0,0.00016712,2]
[338588828,1726751453859,-591.6,0.00016712,2]
[338588829,1726751453868,-1000.0,0.00016712,2]
[338588830,1726751453877,-151.0,0.00016712,2]
[338588831,1726751453888,-1000.0,0.00016712,2]
[338588832,1726751453897,-151.0,0.00016712,2]
[338588833,1726751453907,-1000.0,0.00016712,2]
[338588834,1726751453916,-500.0,0.00016712,2]
[338588835,1726751453925,-1000.0,0.00016712,2]
[338588836,1726751453936,-500.0,0.00016712,2]
[338588837,1726751453945,-1000.0,0.00016712,2]
[338588838,1726751453954,-500.0,0.00016712,2]
[338588839,1726751453964,-1000.0,0.00016712,2]
[338588840,1726751453973,-1000.0,0.00016712,2]
[338588841,1726751453982,-1000.0,0.00016712,2]
[338588842,1726751453991,-151.0,0.00016712,2]
[338588843,1726751454001,-1000.0,0.00016712,2]
[338588844,1726751454010,-151.0,0.00016712,2]
[338588845,1726751454019,-1000.0,0.00016712,2]
[338588846,1726751454028,-151.0,0.00016712,2]
[338588847,1726751454038,-1000.0,0.00016712,2]
[338588848,1726751454047,-1000.0,0.00016712,2]
[338588849,1726751454056,-835.354883,0.00016712,2]
[338588850,1726751454066,-2085.02,0.00016712,2]
[338588851,1726751454075,-500.0,0.00016712,2]
[338588852,1726751454085,-842.78,0.00016712,2]
[338588853,1726751454094,-500.0,0.00016712,2]
[338588854,1726751454103,-151.0,0.00016712,2]
[338588855,1726751454112,-151.0,0.00016712,2]
[338588856,1726751454122,-154.172342,0.00016712,2]
[338588857,1726751454131,-500.0,0.00016712,2]
[338588858,1726751454141,-151.0,0.00016712,2]
[338588859,1726751454150,-151.0,0.00016712,2]
[338588860,1726751454159,-256.474057,0.00016712,2]
[338588861,1726751454168,-1413.95,0.00016712,2]
[338588862,1726751454177,-724.79,0.00016712,2]
[338588863,1726751454186,-500.0,0.00016712,2]
[338588864,1726751454195,-500.0,0.00016712,2]
[338588865,1726751454205,-500.0,0.00016712,2]
[338588866,1726751454214,-2195.26,0.00016712,2]
[338588867,1726751454223,-500.0,0.00016712,2]
[338588868,1726751454232,-500.0,0.00016712,2]
[338588869,1726751454241,-500.0,0.00016712,2]
[338588870,1726751454251,-500.0,0.00016712,2]
[338588871,1726751454260,-500.0,0.00016712,2]
[338588872,1726751454269,-500.0,0.00016712,2]
[338588873,1726751454278,-500.0,0.00016712,2]
[338588874,1726751454288,-842.23,0.00016712,2]
[338588875,1726751454297,-599.3,0.00016712,2]
[338588876,1726751454305,-151.0,0.00016712,2]
[338588877,1726751454314,-151.0,0.00016712,2]
[338588878,1726751454323,-151.0,0.00016712,2]
[338588879,1726751454333,-549.48,0.00016712,2]
[338588880,1726751454342,-500.0,0.00016712,2]
[338588881,1726751454353,-929.97,0.00016712,2]
[338588882,1726751454362,-500.0,0.00016712,2]
[338588883,1726751454371,-102.68392626,0.00016712,2]
[338588884,1726751454693,-151.0,0.00016438,2]
[338588885,1726751454702,-780.49,0.00016438,2]